bitfinex/quotes_BTCUSD_20220105
["timestamp","ask_amount","ask_price","bid_price","bid_amount"]
[1641354404825,0.053867,46429.0,46427.0,0.00032408]
[1641354405071,0.053867,46429.0,46427.0,0.05419308]
[1641354405272,0.053867,46429.0,46427.0,0.053869]
[1641354405471,0.10773449,46429.0,46428.0,0.00032408]
[1641354405672,0.12373449,46429.0,46428.0,0.00032408]
[1641354406970,0.10773449,46429.0,46428.0,0.00032408]
[1641354407572,0.12273449,46429.0,46428.0,0.00032408]
[1641354408827,0.10773449,46429.0,46428.0,0.00032408]
[1641354409625,0.12073449,46429.0,46428.0,0.00032408]
[1641354410823,0.10773449,46429.0,46428.0,0.00032408]
[1641354411625,0.12173449,46429.0,46428.0,0.00032408]
[1641354412774,0.12292377,46429.0,46428.0,0.00032408]
[1641354412969,0.10892377,46429.0,46428.0,0.00032408]
[1641354413171,0.10892377,46429.0,46427.0,0.0331783]
[1641354413569,0.12692377,46429.0,46427.0,0.0331783]
[1641354415074,0.10892377,46429.0,46427.0,0.0331783]
[1641354415673,0.12592377,46429.0,46427.0,0.0331783]
[1641354416918,0.10892377,46429.0,46427.0,0.0331783]
[1641354417618,0.11692377,46429.0,46427.0,0.0411783]
[1641354419023,0.10892377,46429.0,46427.0,0.0331783]
[1641354419623,0.11692377,46429.0,46427.0,0.0361783]
[1641354420872,0.11692377,46429.0,46427.0,0.0331783]
[1641354421073,0.10892377,46429.0,46427.0,0.0331783]
[1641354421678,0.11592377,46429.0,46427.0,0.0401783]
[1641354422875,0.10892377,46429.0,46427.0,0.0331783]
[1641354423676,0.11692377,46429.0,46427.0,0.0461783]
[1641354424927,0.10892377,46429.0,46427.0,0.0331783]
[1641354425728,0.12592377,46429.0,46427.0,0.0331783]
[1641354426934,0.00118928,46429.0,46427.0,0.0331783]
[1641354427675,0.01718928,46429.0,46427.0,0.0331783]
[1641354428774,0.01718928,46429.0,46427.0,0.0870443]
[1641354428976,0.00118928,46429.0,46427.0,0.0870443]
[1641354429774,0.02218928,46429.0,46427.0,0.0910443]
[1641354430876,0.00118928,46429.0,46427.0,0.0870443]
[1641354431727,0.00718928,46429.0,46427.0,0.0960443]
[1641354432926,0.00118928,46429.0,46427.0,0.08715925]
[1641354433527,0.00118928,46429.0,46427.0,0.03329325]
[1641354433727,0.01318928,46429.0,46427.0,0.04129325]
[1641354434926,0.00118928,46429.0,46427.0,0.03329325]
[1641354435675,0.01318928,46429.0,46427.0,0.04129325]
[1641354436875,0.00118928,46429.0,46427.0,0.03329325]
[1641354437676,0.01318928,46429.0,46427.0,0.04129325]
[1641354438923,0.00118928,46429.0,46427.0,0.03329325]
[1641354439123,0.05505928,46429.0,46427.0,0.03329325]
[1641354439325,0.00118928,46429.0,46427.0,0.03329325]
[1641354439524,0.00118928,46429.0,46428.0,0.84466455]
[1641354439724,0.04318928,46429.0,46428.0,1.19964055]
[1641354441025,0.00118928,46429.0,46428.0,0.60964055]
[1641354441625,0.02718928,46429.0,46428.0,0.60964055]
[1641354443275,0.02718928,46429.0,46428.0,0.94964055]
[1641354443679,0.01218928,46429.0,46428.0,0.95164055]
[1641354445677,0.00918928,46429.0,46428.0,0.96064055]
[1641354446735,0.00055691,46434.0,46429.0,0.05385]
[1641354446936,0.00055691,46434.0,46433.0,0.282463]
[1641354447136,0.23719566,46455.0,46433.0,0.56969098]
[1641354447336,0.35483824,46456.0,46438.0,0.00128133]
[1641354447534,0.25906952,46455.0,46440.0,0.10769]
[1641354447736,0.30663824,46456.0,46446.0,0.053843]
[1641354447941,0.30663824,46456.0,46450.0,0.053839]
[1641354448136,0.30663824,46456.0,46448.0,0.053837]
[1641354448337,0.053841,46457.0,46444.0,0.00122729]
[1641354448539,0.0482,46461.0,46445.0,0.354976]
[1641354448738,0.0482,46461.0,46446.0,0.44030721]
[1641354448937,0.0482,46461.0,46455.0,0.053836]
[1641354449138,0.0482,46461.0,46455.0,0.110776]
[1641354449338,0.102036,46461.0,46455.0,0.110776]
[1641354449538,0.25153248,46459.0,46455.0,0.110776]
[1641354449738,0.25153248,46459.0,46455.0,0.112776]
[1641354450176,0.32140103,46457.0,46455.0,0.112776]
[1641354450877,0.32140103,46457.0,46455.0,0.110776]
[1641354452380,0.32140103,46457.0,46455.0,0.053836]
[1641354453826,0.05439437,46458.0,46455.0,0.053836]
[1641354454025,0.04939437,46458.0,46455.0,0.053836]
[1641354455025,0.00055537,46458.0,46455.0,0.053836]
[1641354455726,0.00055537,46458.0,46455.0,0.31378664]
[1641354456427,0.00055537,46458.0,46456.0,0.354976]
[1641354456826,0.00055537,46458.0,46457.0,0.26102278]
[1641354457026,0.00055537,46458.0,46457.0,0.54308678]
[1641354457676,0.00055537,46458.0,46457.0,0.54508678]
[1641354457873,0.0482,46461.0,46458.0,0.05383]
[1641354458074,0.0482,46461.0,46457.0,0.65274578]
[1641354458075,0.1,46465.0,46459.0,0.35495]
[1641354458275,0.0482,46466.0,46461.0,0.053828]
[1641354459075,0.00118841,46463.0,46461.0,0.107656]
[1641354459374,0.00118841,46463.0,46462.0,0.26261402]
[1641354459580,0.00118841,46463.0,46462.0,1.57722798]
[1641354459778,0.004,46469.0,46462.0,0.64341003]
[1641354459977,0.004,46469.0,46463.0,0.335793]
[1641354460376,0.004,46469.0,46463.0,0.38704321]
[1641354460578,0.004,46469.0,46467.0,0.00127027]
[1641354460774,0.004,46469.0,46468.0,0.354928]
[1641354460975,0.0001,46473.0,46468.0,0.354928]
[1641354461175,0.0001,46473.0,46468.0,0.51635529]
[1641354461436,0.0001,46473.0,46470.0,0.161419]
[1641354461630,0.0001,46473.0,46471.0,0.28192]
[1641354461828,0.0001,46473.0,46471.0,0.61431044]
[1641354462031,0.0001,46475.0,46472.0,0.69425899]
[1641354462232,0.0001,46475.0,46473.0,0.39078606]
[1641354462433,0.0002,46484.0,46473.0,0.389506]
[1641354462828,0.28623568,46484.0,46473.0,0.389506]
[1641354463128,0.28623568,46484.0,46475.0,0.05381]
[1641354463728,0.28623568,46484.0,46475.0,0.06081]
[1641354464930,0.53492529,46484.0,46475.0,0.05381]
[1641354465176,0.102216,46483.0,46475.0,0.05381]
[1641354465778,0.0132,46481.0,46475.0,0.05681]
[1641354466979,0.054017,46481.0,46475.0,0.05381]
[1641354467778,0.070017,46481.0,46475.0,0.05381]
[1641354467980,0.053818,46479.0,46475.0,0.05381]
[1641354468922,0.04937374,46479.0,46475.0,0.05381]
[1641354469722,0.06137374,46479.0,46475.0,0.05381]
[1641354469923,0.01255574,46479.0,46475.0,0.05381]
[1641354470524,0.00755574,46479.0,46475.0,0.05381]
[1641354471123,0.0002,46481.0,46475.0,0.05381]
[1641354471723,0.0132,46481.0,46475.0,0.05381]
[1641354473073,0.0002,46481.0,46475.0,0.05381]
[1641354473476,0.044216,46482.0,46475.0,0.05381]
[1641354473876,0.013,46481.0,46475.0,0.05681]
[1641354475075,0.0484,46483.0,46475.0,0.05381]
[1641354475776,0.0644,46483.0,46475.0,0.05381]
[1641354476924,0.000538,46481.0,46475.0,0.05381]
[1641354477729,0.016538,46481.0,46475.0,0.05381]
[1641354478525,0.053816,46480.0,46475.0,0.05381]
[1641354478924,0.043816,46480.0,46475.0,0.05381]
[1641354479733,0.060816,46480.0,46475.0,0.05381]
[1641354480977,0.043816,46480.0,46475.0,0.05381]
[1641354481779,0.060816,46480.0,46475.0,0.05381]
[1641354481981,0.060816,46480.0,46476.0,0.28722798]
[1641354481982,7.422e-05,46479.0,46476.0,0.28722798]
[1641354482183,7.422e-05,46479.0,46477.0,0.354976]
[1641354482388,7.422e-05,46479.0,46478.0,0.28301549]
[1641354483184,0.0002,46483.0,46478.0,0.57024347]
[1641354483383,0.0002,46483.0,46482.0,0.994937]
[1641354483581,0.0002,46483.0,46482.0,1.122907]
[1641354483828,0.0001,46486.0,46484.0,0.281708]
[1641354484028,0.0001,46486.0,46485.0,0.354911]
[1641354485229,0.0001,46486.0,46485.0,0.458698]
[1641354485431,0.00128782,46486.0,46485.0,0.80417207]
[1641354485830,0.00064088,46488.0,46486.0,0.861693]
[1641354486031,0.00064088,46488.0,46487.0,0.67066847]
[1641354487032,0.00064088,46488.0,46487.0,0.72445547]
[1641354487883,0.00064088,46488.0,46487.0,0.74145547]
[1641354488886,0.00064088,46488.0,46487.0,0.94145547]
[1641354489087,0.00064088,46488.0,46487.0,0.92445547]
[1641354489986,0.00064088,46488.0,46487.0,0.94345547]
[1641354491187,0.00064088,46488.0,46487.0,0.99345547]
[1641354492028,0.00064088,46488.0,46487.0,0.677682]
[1641354492428,0.00071677,46488.0,46487.0,0.677682]
[1641354492629,0.00017589,46488.0,46487.0,0.677682]
[1641354492933,0.00017589,46488.0,46487.0,0.67890248]
[1641354493129,0.00017589,46488.0,46487.0,0.71670248]
[1641354493330,0.0041,46489.0,46488.0,1.07]
[1641354493530,0.0041,46489.0,46488.0,0.539244]
[1641354493830,0.00074076,46490.0,46489.0,0.31]
[1641354494029,0.00074076,46490.0,46489.0,0.454878]
[1641354494231,0.32855386,46503.0,46490.0,0.281665]
[1641354494435,0.32855386,46503.0,46496.0,0.10757]
[1641354494631,0.32982444,46503.0,46499.0,0.053788]
[1641354495073,0.32482444,46503.0,46499.0,0.053788]
[1641354495371,0.32482444,46503.0,46492.0,0.28722798]
[1641354495372,0.32482444,46503.0,46493.0,0.107565]
[1641354495771,0.32482444,46503.0,46499.0,0.005]
[1641354496370,0.31982444,46503.0,46499.0,0.005]
[1641354496772,0.31982444,46503.0,46500.0,0.053789]
[1641354497772,0.31982444,46503.0,46500.0,0.057789]
[1641354499028,0.31982444,46503.0,46500.0,0.053789]
[1641354499923,0.31982444,46503.0,46500.0,0.057789]
[1641354500730,0.1,46504.0,46500.0,0.057789]
[1641354500924,0.00053922,46504.0,46500.0,0.057789]
[1641354501124,0.00053922,46504.0,46500.0,0.053789]
[1641354501927,0.23235284,46504.0,46500.0,0.053789]
[1641354502974,8.119e-05,46503.0,46500.0,0.053789]
[1641354503773,8.119e-05,46503.0,46500.0,0.056789]
[1641354504976,8.119e-05,46503.0,46500.0,0.053789]
[1641354505776,0.05008119,46503.0,46500.0,0.058789]
[1641354506421,0.04508119,46503.0,46500.0,0.058789]
[1641354507019,0.04508119,46503.0,46500.0,0.053789]
[1641354507820,0.04508119,46503.0,46500.0,0.057789]
[1641354508022,8.119e-05,46503.0,46500.0,0.057789]
[1641354509020,8.119e-05,46503.0,46500.0,0.053789]
[1641354509320,0.22742758,46504.0,46500.0,0.053789]
[1641354509520,0.27562758,46504.0,46500.0,0.053789]
[1641354509923,0.27562758,46504.0,46500.0,0.001]
[1641354509924,0.78,46501.0,46500.0,0.001]
[1641354510179,1.63866683,46501.0,46500.0,0.001]
[1641354510380,2.24116683,46501.0,46500.0,0.001]
[1641354510975,2.29496283,46501.0,46500.0,0.001]
[1641354511180,2.00916539,46501.0,46492.0,0.107586]
[1641354511474,2.00916539,46501.0,46492.0,0.097586]
[1641354511475,0.27361632,46493.0,46492.0,0.097586]
[1641354511773,0.67679232,46493.0,46492.0,0.097586]
[1641354512174,0.32181632,46493.0,46485.0,0.053793]
[1641354512373,0.0482,46493.0,46488.0,0.107583]
[1641354512572,0.0482,46493.0,46489.0,0.281597]
[1641354513374,6.456e-05,46492.0,46490.0,0.053789]
[1641354513574,0.04826456,46492.0,46490.0,0.107578]
[1641354513832,0.06226456,46492.0,46490.0,0.060789]
[1641354514429,0.01406456,46492.0,46491.0,1.08011479]
[1641354514631,0.01406456,46492.0,46491.0,1.43509079]
[1641354515028,0.01406456,46492.0,46491.0,0.35509079]
[1641354515229,0.01406456,46492.0,46491.0,0.00011479]
[1641354515230,0.06226456,46492.0,46491.0,0.00011479]
[1641354515627,0.04826456,46492.0,46491.0,0.00011479]
[1641354515828,0.05326456,46492.0,46491.0,0.00711479]
[1641354517028,0.05326456,46492.0,46491.0,0.36209079]
[1641354517229,0.04326456,46492.0,46491.0,0.61150195]
[1641354517429,0.04326456,46492.0,46491.0,0.35509079]
[1641354517878,0.05326456,46492.0,46491.0,0.36409079]
[1641354518277,0.05326456,46492.0,46491.0,0.61948066]
[1641354518478,0.05326456,46492.0,46491.0,0.36409079]
[1641354518983,0.01,46492.0,46491.0,0.36409079]
[1641354519184,0.00053003,46494.0,46492.0,0.053786]
[1641354519379,0.00053003,46494.0,46493.0,0.281531]
[1641354519978,0.00853003,46494.0,46493.0,0.291531]
[1641354521181,0.00053003,46494.0,46493.0,0.54019895]
[1641354521837,0.00953003,46494.0,46493.0,0.55119895]
[1641354522836,0.009,46494.0,46493.0,0.292531]
[1641354523038,0.0482,46500.0,46493.0,0.281531]
[1641354523236,0.0482,46500.0,46491.0,0.05390079]
[1641354523438,0.0482,46500.0,46495.0,0.053788]
[1641354523838,0.05378794,46499.0,46495.0,0.053788]
[1641354524037,6.415e-05,46499.0,46495.0,0.053788]
[1641354524837,0.00059708,46499.0,46495.0,0.053788]
[1641354525676,0.05438408,46499.0,46495.0,0.053788]
[1641354525876,0.354976,46498.0,46495.0,0.062788]
[1641354527078,0.354976,46498.0,46495.0,0.053788]
[1641354527879,0.419764,46498.0,46495.0,0.054788]
[1641354528079,0.05378964,46497.0,46495.0,0.054788]
[1641354528280,0.354976,46496.0,46495.0,0.034788]
[1641354529027,0.05378964,46497.0,46495.0,0.034788]
[1641354529228,0.05378964,46497.0,46495.0,0.033788]
[1641354529229,0.05379,46497.0,46495.0,0.033788]
[1641354529827,0.06379,46497.0,46495.0,0.035788]
[1641354530227,0.354976,46496.0,46495.0,0.035788]
[1641354530428,0.06379,46497.0,46495.0,0.035788]
[1641354530829,0.354976,46496.0,46495.0,0.035788]
[1641354531027,0.11757931,46497.0,46495.0,0.035788]
[1641354531229,0.10757931,46497.0,46495.0,0.033788]
[1641354531831,0.10757931,46497.0,46495.0,0.034788]
[1641354532034,0.11757931,46497.0,46495.0,0.034788]
[1641354533179,0.10757931,46497.0,46495.0,0.033788]
[1641354533977,0.354976,46496.0,46495.0,0.033788]
[1641354534381,0.40323889,46496.0,46495.0,0.033788]
[1641354534778,0.40323889,46496.0,46492.0,0.053793]
[1641354535178,0.053793,46495.0,46492.0,0.053793]
[1641354535980,0.007,46495.0,46492.0,0.065793]
[1641354537026,0.28733555,46493.0,46492.0,0.065793]
[1641354537229,0.28733555,46493.0,46492.0,0.053793]
[1641354537826,0.28733555,46493.0,46492.0,0.070793]
[1641354538026,0.29433555,46493.0,46492.0,0.370793]
[1641354538228,0.007,46493.0,46492.0,0.370793]
[1641354539126,0.053791,46495.0,46492.0,0.353793]
[1641354539927,0.060791,46495.0,46492.0,0.365793]
[1641354540982,0.060791,46495.0,46492.0,0.065793]
[1641354541184,0.053791,46495.0,46492.0,0.053793]
[1641354541986,0.060791,46495.0,46492.0,0.067793]
[1641354542587,0.007,46495.0,46492.0,0.067793]
[1641354543288,0.00059562,46496.0,46492.0,0.053793]
[1641354543487,0.00059562,46496.0,46493.0,0.053788]
[1641354543930,0.00759562,46496.0,46493.0,0.053788]
[1641354544129,0.06138562,46496.0,46493.0,0.053788]
[1641354545228,0.05438562,46496.0,46493.0,0.053788]
[1641354545828,0.354976,46495.0,46493.0,0.053788]
[1641354546030,0.354976,46495.0,46493.0,0.058788]
[1641354546430,0.06038562,46496.0,46493.0,0.058788]
[1641354547231,0.05438562,46496.0,46493.0,0.053788]
[1641354547682,0.05385289,46496.0,46493.0,0.053788]
[1641354547879,0.07085289,46496.0,46493.0,0.053788]
[1641354549282,0.05385289,46496.0,46493.0,0.053788]
[1641354550087,0.0482,46495.0,46493.0,0.053788]
[1641354550291,0.0482,46495.0,46491.0,0.00011479]
[1641354550292,0.26102453,46493.0,46491.0,0.00011479]
[1641354550490,0.403176,46492.0,46491.0,0.00011479]
[1641354550884,0.503176,46492.0,46491.0,0.00011479]
[1641354551329,0.79637971,46492.0,46491.0,0.00011479]
[1641354551729,0.79756736,46492.0,46491.0,0.00011479]
[1641354551929,0.81056736,46492.0,46491.0,0.00011479]
[1641354552329,1.09008842,46492.0,46491.0,0.00011479]
[1641354553131,1.07708842,46492.0,46491.0,0.00011479]
[1641354553930,1.09008842,46492.0,46491.0,0.00011479]
[1641354555177,1.07708842,46492.0,46491.0,0.00011479]
[1641354555978,1.09008842,46492.0,46491.0,0.00011479]
[1641354556179,1.14008842,46492.0,46491.0,0.00011479]
[1641354557279,1.12708842,46492.0,46491.0,0.00011479]
[1641354557880,1.14108842,46492.0,46491.0,0.00011479]
[1641354558184,1.13108842,46492.0,46491.0,0.00011479]
[1641354558832,1.09108842,46492.0,46491.0,0.00011479]
[1641354559129,1.07708842,46492.0,46491.0,0.00011479]
[1641354559929,1.09108842,46492.0,46491.0,0.00011479]
[1641354560330,1.14108842,46492.0,46491.0,0.00011479]
[1641354561132,1.12708842,46492.0,46491.0,0.00011479]
[1641354561932,1.14108842,46492.0,46491.0,0.00011479]
[1641354562333,1.09108842,46492.0,46491.0,0.00011479]
[1641354562577,0.06338765,46492.0,46491.0,0.00011479]
[1641354563179,0.04938765,46492.0,46491.0,0.00011479]
[1641354563979,0.06338765,46492.0,46491.0,0.00011479]
[1641354565180,0.04938765,46492.0,46491.0,0.00011479]
[1641354565986,0.06238765,46492.0,46491.0,0.00011479]
[1641354566826,0.41736365,46492.0,46491.0,0.00011479]
[1641354567227,0.40436365,46492.0,46491.0,0.00011479]
[1641354567828,0.55436365,46492.0,46491.0,0.00011479]
[1641354568129,0.6828321,46492.0,46491.0,0.00011479]
[1641354568331,0.8828321,46492.0,46491.0,0.00011479]
[1641354568929,0.61636365,46492.0,46491.0,0.00011479]
[1641354569229,0.60436365,46492.0,46491.0,0.00011479]
[1641354569828,0.55436365,46492.0,46491.0,0.00011479]
[1641354570097,0.56536365,46492.0,46491.0,0.00011479]
[1641354571297,0.55436365,46492.0,46491.0,0.00011479]
[1641354571997,0.56636365,46492.0,46491.0,0.00011479]
[1641354572399,0.51636365,46492.0,46491.0,0.00011479]
[1641354572597,0.51136365,46492.0,46491.0,0.00011479]
[1641354572999,0.05638765,46492.0,46484.0,0.10270679]
[1641354573199,0.09818257,46492.0,46484.0,0.10270679]
[1641354573399,0.04438765,46492.0,46484.0,0.10270679]
[1641354573602,0.32756509,46488.0,46482.0,0.00121577]
[1641354573829,0.32756509,46488.0,46483.0,0.354976]
[1641354574631,0.053797,46490.0,46483.0,0.354976]
[1641354575833,0.053797,46490.0,46487.0,0.053799]
[1641354576035,0.01,46490.0,46487.0,0.053799]
[1641354577235,0.49749078,46492.0,46487.0,0.053799]
[1641354577436,0.00118774,46489.0,46487.0,0.053799]
[1641354578080,0.00918774,46489.0,46487.0,0.053799]
[1641354579280,0.00118774,46489.0,46487.0,0.053799]
[1641354579980,0.01118774,46489.0,46487.0,0.053799]
[1641354581334,0.00118774,46489.0,46487.0,0.053799]
[1641354581932,0.01118774,46489.0,46487.0,0.053799]
[1641354582133,0.06498574,46489.0,46487.0,0.053799]
[1641354582933,0.06498574,46489.0,46487.0,0.048799]
[1641354583133,0.01118774,46489.0,46487.0,0.048799]
[1641354583334,0.00118774,46489.0,46487.0,0.048799]
[1641354583935,0.01318774,46489.0,46487.0,0.048799]
[1641354585176,0.00118774,46489.0,46487.0,0.048799]
[1641354586079,0.01218774,46489.0,46487.0,0.048799]
[1641354587279,0.00118774,46489.0,46487.0,0.048799]
[1641354588082,0.01318774,46489.0,46487.0,0.048799]
[1641354588386,0.01318774,46489.0,46481.0,0.29386265]
[1641354588387,0.0482,46488.0,46479.0,0.3019]
[1641354588683,0.2889718,46481.0,46479.0,0.3019]
[1641354588932,0.2889718,46481.0,46473.0,1.305017]
[1641354588933,0.0482,46480.0,46473.0,1.305017]
[1641354589133,0.0482,46480.0,46473.0,0.107617]
[1641354589437,0.65228639,46480.0,46473.0,0.107617]
[1641354589637,0.05381,46478.0,46473.0,0.107617]
[1641354589933,0.0482,46477.0,46473.0,0.107617]
[1641354590436,0.0482,46477.0,46474.0,0.354976]
[1641354590833,0.0482,46477.0,46475.0,0.05381]
[1641354591834,0.0482,46477.0,46476.0,0.354976]
[1641354592234,0.0482,46477.0,46475.0,0.05381]
[1641354594284,0.0482,46477.0,46476.0,0.354976]
[1641354595284,0.0432,46477.0,46476.0,0.354976]
[1641354598034,0.0502,46477.0,46476.0,0.354976]
[1641354599533,0.0432,46477.0,46476.0,0.354976]
[1641354600189,0.0502,46477.0,46476.0,0.354976]
[1641354601285,0.0432,46477.0,46476.0,0.354976]
[1641354605634,0.05380766,46478.0,46476.0,0.354976]
[1641354607238,0.10761766,46478.0,46476.0,0.354976]
[1641354607883,0.10761766,46478.0,46476.0,0.35105546]
[1641354608083,0.05433877,46479.0,46476.0,0.35105546]
[1641354608283,0.05434061,46479.0,46476.0,0.40486246]
[1641354609385,0.05380713,46478.0,46476.0,0.35105546]
[1641354610286,0.05380713,46478.0,46477.0,0.00069801]
[1641354610487,0.05380713,46478.0,46477.0,0.28246101]
[1641354612134,0.05580713,46478.0,46477.0,0.28246101]
[1641354612748,0.00118774,46489.0,46477.0,1.70703253]
[1641354612942,2.48e-06,46480.0,46478.0,0.0482]
[1641354613135,0.00118774,46489.0,46488.0,0.02223764]
[1641354613438,0.00118774,46489.0,46488.0,0.94987764]
[1641354613638,0.29165919,46505.0,46489.0,0.277849]
[1641354613836,0.54176213,46505.0,46494.0,0.05378]
[1641354614036,0.54176213,46505.0,46499.0,0.00121047]
[1641354615389,1.354815,46500.0,46499.0,0.00121047]
[1641354615985,1.354815,46500.0,46493.0,0.053786]
[1641354616185,1.046,46500.0,46499.0,0.003]
[1641354616386,1.395815,46500.0,46499.0,0.003]
[1641354617286,1.349815,46500.0,46496.0,0.053783]
[1641354617485,0.995,46500.0,46496.0,0.053783]
[1641354618085,0.995,46500.0,46496.0,0.066783]
[1641354618485,0.995,46500.0,46496.0,0.013]
[1641354619135,0.053787,46499.0,46496.0,0.013]
[1641354619335,0.053787,46499.0,46490.0,0.26081163]
[1641354620035,0.053787,46499.0,46490.0,0.29081163]
[1641354620337,0.995,46500.0,46498.0,0.00069801]
[1641354620540,0.354815,46499.0,46498.0,0.00069801]
[1641354622037,0.363815,46499.0,46498.0,0.01069801]
[1641354623985,0.354815,46499.0,46498.0,0.00069801]
[1641354624185,0.363815,46499.0,46498.0,0.01069801]
[1641354624797,0.009,46499.0,46498.0,0.01069801]
[1641354625386,0.995,46500.0,46498.0,0.00069801]
[1641354625790,0.354815,46499.0,46498.0,0.00069801]
[1641354626186,1.006,46500.0,46498.0,0.00869801]
[1641354627453,1.006,46500.0,46498.0,0.00069801]
[1641354627454,1.048786,46500.0,46498.0,0.00069801]
[1641354627656,0.354815,46499.0,46498.0,0.00069801]
[1641354628056,0.354815,46499.0,46498.0,0.00669801]
[1641354629358,0.354815,46499.0,46498.0,0.00069801]
[1641354630089,0.410815,46499.0,46498.0,0.00669801]
[1641354631295,0.354815,46499.0,46498.0,0.00069801]
[1641354631692,0.995,46500.0,46498.0,0.00069801]
[1641354631894,6.5e-05,46499.0,46498.0,0.00069801]
[1641354632094,0.021065,46499.0,46498.0,0.00069801]
[1641354633297,0.35488,46499.0,46498.0,0.00069801]
[1641354633498,6.5e-05,46499.0,46498.0,0.00069801]
[1641354633703,0.35488,46499.0,46498.0,0.00069801]
[1641354634240,0.37288,46499.0,46498.0,0.00069801]
[1641354634841,0.018065,46499.0,46498.0,0.00069801]
[1641354635444,6.5e-05,46499.0,46498.0,0.00069801]
[1641354636143,0.36488,46499.0,46498.0,0.00869801]
[1641354637346,0.35488,46499.0,46498.0,0.00069801]
[1641354637788,6.5e-05,46499.0,46498.0,0.00069801]
[1641354638188,0.010065,46499.0,46498.0,0.00969801]
[1641354638389,0.013675,46499.0,46498.0,0.00969801]
[1641354638790,0.36849,46499.0,46498.0,0.00969801]
[1641354640193,0.38249,46499.0,46498.0,0.00969801]
[1641354640793,0.35849,46499.0,46498.0,0.00069801]
[1641354641194,0.003675,46499.0,46498.0,0.00069801]
[1641354642134,0.018675,46499.0,46498.0,0.00069801]
[1641354643340,0.003675,46499.0,46498.0,0.00069801]
[1641354643540,0.003675,46499.0,46498.0,0.35551301]
[1641354643739,0.003675,46499.0,46498.0,0.61035167]
[1641354644040,0.003675,46499.0,46498.0,0.61646918]
[1641354644348,0.003675,46499.0,46498.0,0.7194291]
[1641354644939,0.003675,46499.0,46498.0,1.1594291]
[1641354645191,0.003675,46499.0,46498.0,0.7194291]
[1641354645392,0.003675,46499.0,46498.0,0.7014291]
[1641354646192,0.003675,46499.0,46498.0,0.7384291]
[1641354647394,0.003675,46499.0,46498.0,2.86753348]
[1641354648193,0.003675,46499.0,46498.0,2.92153348]
[1641354649441,0.003675,46499.0,46498.0,2.86753348]
[1641354650244,0.003675,46499.0,46498.0,2.92353348]
[1641354651045,0.003675,46499.0,46498.0,2.66257731]
[1641354651444,0.003675,46499.0,46498.0,2.60657731]
[1641354652251,0.003675,46499.0,46498.0,2.64657731]
[1641354653589,0.003675,46499.0,46498.0,2.60657731]
[1641354654189,0.003675,46499.0,46498.0,2.64557731]
[1641354655391,0.003675,46499.0,46498.0,2.60657731]
[1641354656192,0.003675,46499.0,46498.0,2.64357731]
[1641354657044,0.03586889,46508.0,46499.0,0.13]
[1641354657243,0.03586889,46508.0,46502.0,0.053776]
[1641354657447,0.03586889,46508.0,46503.0,0.354771]
[1641354657646,0.053876,46508.0,46503.0,0.354771]
[1641354658245,0.33460402,46508.0,46503.0,0.009]
[1641354659045,0.38838054,46508.0,46503.0,0.009]
[1641354659242,0.33460454,46508.0,46503.0,0.009]
[1641354659443,0.33460454,46508.0,46498.0,0.00194793]
[1641354659444,0.27082802,46508.0,46498.0,0.00194793]
[1641354660099,0.0001,46508.0,46498.0,0.26325213]
[1641354660297,0.0001,46508.0,46498.0,0.28725213]
[1641354660494,0.0001,46508.0,46499.0,0.462361]
[1641354660697,0.0001,46508.0,46500.0,0.2658965]
[1641354660897,0.0001,46508.0,46502.0,0.053775]
[1641354661096,0.0001,46508.0,46503.0,0.354783]
[1641354661598,0.35186775,46507.0,46503.0,0.354783]
[1641354661798,0.40564515,46507.0,46498.0,0.00194793]
[1641354662098,0.35186815,46507.0,46499.0,0.354815]
[1641354662298,0.30409075,46507.0,46503.0,0.012]
[1641354662500,0.006,46507.0,46503.0,0.012]
[1641354662703,0.006,46507.0,46504.0,0.354815]
[1641354662899,0.006,46507.0,46503.0,0.012]
[1641354663501,0.24965707,46505.0,46499.0,0.26636345]
[1641354663700,0.24965707,46505.0,46500.0,0.354815]
[1641354663942,0.24965707,46505.0,46501.0,0.053777]
[1641354664142,0.24965707,46505.0,46502.0,0.277661]
[1641354666346,0.24965707,46505.0,46502.0,0.358661]
[1641354667586,0.24965707,46505.0,46502.0,0.277661]
[1641354668288,0.24965707,46505.0,46502.0,0.358661]
[1641354668588,0.053778,46506.0,46502.0,0.358661]
[1641354668789,0.053778,46506.0,46502.0,0.412435]
[1641354668790,0.00050679,46506.0,46502.0,0.412435]
[1641354669188,0.00050679,46506.0,46502.0,0.358661]
[1641354670092,0.00050679,46506.0,46502.0,0.277661]
[1641354670291,0.00050679,46506.0,46504.0,0.00069801]
[1641354670602,0.00050679,46506.0,46505.0,0.354775]
[1641354672237,0.00050679,46506.0,46505.0,0.374775]
[1641354672638,6.497e-05,46506.0,46505.0,0.374775]
[1641354672839,6.497e-05,46506.0,46505.0,0.6279841]
[1641354673841,0.05353597,46513.0,46505.0,0.6279841]
[1641354674141,0.04853597,46513.0,46505.0,0.6079841]
[1641354674340,0.04853597,46513.0,46505.0,0.6279841]
[1641354674741,0.04853597,46513.0,46505.0,0.2732091]
[1641354675394,0.0001,46514.0,46505.0,0.2732091]
[1641354675594,0.05387029,46514.0,46506.0,0.053771]
[1641354675798,0.05387029,46514.0,46505.0,0.2732091]
[1641354675799,0.0001,46514.0,46505.0,0.02]
[1641354676193,0.0071,46514.0,46506.0,0.013]
[1641354676593,0.114644,46514.0,46506.0,0.013]
[1641354676794,0.00050688,46512.0,46506.0,0.013]
[1641354677194,0.05377259,46511.0,46506.0,0.013]
[1641354677594,0.05377259,46511.0,46505.0,0.053773]
[1641354678193,0.053774,46510.0,46505.0,0.076773]
[1641354678843,0.00050688,46512.0,46505.0,0.076773]
[1641354679247,0.053774,46510.0,46505.0,0.076773]
[1641354679448,0.053774,46510.0,46505.0,0.053773]
[1641354680246,0.00050688,46512.0,46508.0,0.00069801]
[1641354681547,0.10805061,46512.0,46508.0,0.00069801]
[1641354681747,0.05427861,46512.0,46508.0,0.00069801]
[1641354682349,0.06127861,46512.0,46508.0,0.01069801]
[1641354682794,0.00118719,46511.0,46508.0,0.01069801]
[1641354683093,0.05496019,46511.0,46508.0,0.01069801]
[1641354683295,0.05502304,46511.0,46508.0,0.01069801]
[1641354683497,0.05502304,46511.0,46508.0,0.00069801]
[1641354684195,0.05502304,46511.0,46508.0,0.01769801]